Cogmind - Beta 15 @@@ ROGUE MODE // 2025.08.06 @ 18:27:47 Player: Zoe Result: Core destroyed Performance ------------- Evolutions (1) 500 Regions Visited (5) 1000 Robots Destroyed (38) 190 Value Destroyed (1060) 1060 Prototype IDs (23) 460 Alien Tech Used (0) 0 Bonus (300) 300 TOTAL SCORE: 3510 Bonus ------- Aligned with FarCom 300 Cogmind --------- Core Integrity 0/400 Matter 263/300 Energy 209/265 System Corruption 0% Temperature Critical (640) Movement Walking (260) Ox2 Location -8/Mines Parts ------- > --- POWER (1) -------- Improved Ion Engine > --- PROPULSION (2) --- Aluminum Leg Aluminum Leg > --- UTILITY (3) ------ Medium Storage Unit Sensor Array Improved Signal Interpreter > --- WEAPON (3) ------- Particle Cannon Particle Cannon Particle Cannon > --- INVENTORY (10) --- Improved Ion Engine Aluminum Leg Aluminum Leg Sensor Array Heavy Armor Plating Hacking Suite Light Assault Rifle Field Lobotomy Kit (5) Peak State ------------ > --- POWER ------------ Improved Ion Engine > --- PROPULSION ------- Aluminum Leg Aluminum Leg > --- UTILITY ---------- Medium Storage Unit Sensor Array Improved Signal Interpreter > --- WEAPON ----------- Particle Cannon Particle Cannon Field Lobotomy Kit > --- INVENTORY -------- Improved Ion Engine Aluminum Leg Aluminum Leg Sensor Array Heavy Armor Plating Hacking Suite Particle Cannon Light Assault Rifle [Rating: 24] Favorites ----------- Power Improved Ion Engine Engine Improved Ion Engine Propulsion Aluminum Leg Leg Aluminum Leg Utility Small Storage Unit Device Sensor Array Storage Small Storage Unit Processor Improved Signal Interpreter Protection Heavy Armor Plating Weapon Particle Cannon Energy Gun Small Laser Energy Cannon Particle Cannon Ballistic Gun Assault Rifle Special Weapon Mining Laser Build | -11 -10 -9 -9 -9 -8 ------- Run | Yrd Mat Mat Min Exi Min Slots Evolved 2 | . . 2 . . . Power . | . . . . . . Propulsion . | . . . . . . Utility 1 | . . 1 . . . Weapon 1 | . . 1 . . . Parts Attached 36 | 7 2 22 4 1 . Power 6 | 1 1 3 1 . . Engine 6 | 1 1 3 1 . . Core . | . . . . . . Reactor . | . . . . . . Propulsion 8 | 2 . 4 2 . . Treads . | . . . . . . Leg 8 | 2 . 4 2 . . Wheel . | . . . . . . Hover . | . . . . . . Flight . | . . . . . . Utility 10 | 2 1 6 1 . . Device 5 | 1 1 3 . . . Storage 2 | 1 . . 1 . . Processor 2 | . . 2 . . . Hackware . | . . . . . . Protection 1 | . . 1 . . . Artifact . | . . . . . . Weapon 12 | 2 . 9 . 1 . Energy Gun 6 | 1 . 5 . . . Energy Cannon 3 | . . 3 . . . Ballistic Gun 1 | 1 . . . . . Ballistic Cannon . | . . . . . . Launcher . | . . . . . . Special Weapon 2 | . . 1 . 1 . Impact Weapon . | . . . . . . Slashing Weapon . | . . . . . . Piercing Weapon . | . . . . . . Special Melee Weapon . | . . . . . . Unidentified Prototypes 1 | . . . . 1 . Parts Lost 10 | . . 10 . . . Power 1 | . . 1 . . . Propulsion 3 | . . 3 . . . Utility 2 | . . 2 . . . Weapon 4 | . . 4 . . . Highest Loss Streak 7 | . . 7 . . . To Critical Strikes . | . . . . . . Average Backups 7 | 4 7 6 7 7 8 Power 1 | . 1 1 1 1 1 Propulsion 2 | 2 3 2 2 2 2 Utility 2 | . 1 2 3 3 3 Weapon . | 1 2 . 1 1 1 Tool/Special . | . . . . . . Unused Backups 11 | . 2 7 . . 2 Power 2 | . 1 1 . . . Propulsion 4 | . 1 3 . . . Utility 5 | . . 3 . . 2 Weapon . | . . . . . . Tool/Special . | . . . . . . Average Slot Usage (%) 95 | . 100 91 100 100 100 Engine 11 | . 14 10 11 11 11 Leg 22 | . 28 21 22 22 22 Device 11 | . 14 11 11 11 11 Storage 11 | . 14 11 11 11 11 Processor 7 | . . 5 11 11 11 Energy Gun 13 | . 14 25 . . . Energy Cannon 15 | . . 1 33 32 33 Ballistic Gun 2 | . 14 2 . . . Peak Build Rating 24 | 9 9 16 16 24 17 Average Rating 13 | 6 8 12 16 16 17 On Entrance 11 | . 9 9 16 16 17 Naked Turns . | . . . . . . Heaviest Build 34 | 15 15 32 30 34 30 Greatest Support 20 | 20 20 20 20 20 20 Greatest Overweight (x) 3 | 3 . 1 1 1 1 Average Overweight (x) . | . . . 1 1 1 Largest Inventory Capacity 10 | 8 8 8 10 10 10 Average Capacity 8 | 7 8 8 9 10 10 Most Carried 9 | 7 8 8 8 9 9 Average Carried 7 | 4 7 7 8 8 9 Final Capacity 10 | 8 8 8 10 10 10 Final Carried 9 | 7 8 8 8 9 9 Class Distribution -------------------- 44% | Skirmisher 19% | Mutant 15% | Scavenger-Skirmisher 9% | Scavenger-Gunner 4% | Gunner 3% | Scavenger-Tank Dominant Class ---------------- Mutant | -10/Materials Scavenger-Skirmisher | -9/Materials Skirmisher | -9/Mines Skirmisher | -9/Exiles Skirmisher | -8/Mines Resources | -11 -10 -9 -9 -9 -8 ----------- Run | Yrd Mat Mat Min Exi Min Matter Collected 726 | 219 97 321 40 . 49 Remotely . | . . . . . . Salvage Created 1415 | 30 133 1106 42 . 104 Parts 85 | 9 7 56 8 . 5 Haulers Intercepted . | . . . . . . Recyclers Shooed . | . . . . . . Parts Field Recycled . | . . . . . . Retrieved Matter . | . . . . . . Parts Self-Destructed . | . . . . . . Prevented . | . . . . . . Kills | -11 -10 -9 -9 -9 -8 ------- Run | Yrd Mat Mat Min Exi Min Combat Hostiles Destroyed 31 | . 2 24 3 . 2 Guns 19 | . 1 18 . . . Cannons 10 | . . 5 3 . 2 AOE 2 | . 1 1 . . . Classes Destroyed 8 | 1 3 4 . . . Builder 1 | . 1 . . . . Tunneler 2 | 2 . . . . . Recycler 2 | . . 2 . . . Operator 2 | . 1 1 . . . Swarmer 8 | . . 5 3 . . Grunt 17 | . 2 14 . . 1 Brawler 3 | . . 2 . . 1 Sentry 3 | . . 3 . . . Best Kill Streak 4 | 2 3 4 3 . 2 Combat Bots Only 4 | . 2 4 3 . 2 Max Kills in Single Turn 3 | 1 2 3 1 . 1 Gunslinging . | . . . . . . Exploded 1 | . 1 1 . . . Melee . | . . . . . . Uniques/NPCs Destroyed . | . . . . . . Combat | -11 -10 -9 -9 -9 -8 -------- Run | Yrd Mat Mat Min Exi Min Hostile Shots Fired 163 | . 22 126 5 . 10 Missed 39 | . 11 25 1 . 2 Hits 124 | . 11 101 4 . 8 Projectile 124 | . 11 101 4 . 8 Damage Taken 1556 | . 149 1173 32 . 202 Core 449 | . 42 275 8 . 124 Absorbed by Shields . | . . . . . . Core Remaining (%) 91 | 100 83 . . . . Volleys Fired 97 | 4 9 75 4 . 5 Largest 3 | 2 2 3 3 . 3 Hottest 204 | 60 60 204 204 . 204 Shots Fired 234 | 8 18 181 12 . 15 Gun 192 | 8 18 166 . . . Cannon 39 | . . 12 12 . 15 Launcher . | . . . . . . Special 3 | . . 3 . . . Kinetic 39 | 4 9 26 . . . Thermal 151 | . . 124 12 . 15 Explosive . | . . . . . . Electromagnetic 44 | 4 9 31 . . . Robot Hit Streak 12 | 3 9 12 2 . 3 Robot Miss Streak 4 | 3 2 4 3 . 3 Penetration Max . | . . . . . . Secondary Targets 2 | . . 2 . . . Max Gunslinging Chain 1 | . . 1 . . . Shots Hit Robots 145 | 3 13 121 3 . 5 Core Hits 64 | 2 6 49 3 . 4 Critical Kills . | . . . . . . Critical Parts Destroyed . | . . . . . . Critical Strikes 1 | . 1 . . . . Corrupt 1 | . 1 . . . . Melee Attacks . | . . . . . . Impact . | . . . . . . Slashing . | . . . . . . Piercing . | . . . . . . Sneak Attacks . | . . . . . . Combat Hostiles . | . . . . . . Follow-up Attacks . | . . . . . . Damage Inflicted 2296 | 40 302 1708 83 . 163 Guns 1616 | 40 159 1417 . . . Cannons 389 | . . 143 83 . 163 Explosions 241 | . 143 98 . . . Melee . | . . . . . . Ramming 2 | . . 2 . . . Kinetic 275 | 12 47 216 . . . Thermal 1520 | . 143 1131 83 . 163 Explosive . | . . . . . . Electromagnetic 499 | 28 112 359 . . . Impact . | . . . . . . Slashing . | . . . . . . Piercing . | . . . . . . Highest Corruption . | . . . . . . Average Corruption . | . . . . . . Corruption Purged . | . . . . . . Corruption Blocked . | . . . . . . Overload Shots . | . . . . . . Overflow Damage 29 | . 9 20 . . . Projectiles 2 | . . 2 . . . Explosions 27 | . 9 18 . . . Melee . | . . . . . . Knockbacks . | . . . . . . Impact . | . . . . . . Kinetic . | . . . . . . Secondary . | . . . . . . Self-Inflicted Damage 83 | . 39 44 . . . Shots 2 | . 1 1 . . . Rammed . | . . . . . . Targets Rammed 3 | . . 3 . . . Kicked 3 | . . 3 . . . Crushed . | . . . . . . Highest Temperature 640 | . 48 362 502 . 640 Average Temperature 126 | . 24 106 238 . 352 Received Heat Transfer 669 | . 42 555 . . 72 Effects 10 | . . 1 5 . 4 Shutdowns 3 | . . . 2 . 1 Interference 2 | . . 1 1 . . Matter Decay 1 | . . . . . 1 Short Circuit 1 | . . . . . 1 Damage (major) 2 | . . . 2 . . Damage (core) 1 | . . . . . 1 Siege Activations . | . . . . . . Martial Activations . | . . . . . . Shielding Activations . | . . . . . . Robots Disrupted . | . . . . . . Combat Hostiles . | . . . . . . Robots Corrupted . | . . . . . . Combat Hostiles . | . . . . . . Parts Fried 1 | . 1 . . . . Impact Corruptions . | . . . . . . Robots Melted . | . . . . . . Combat Hostiles . | . . . . . . Parts Melted 4 | . . 4 . . . Heat Transferred 3202 | . 150 2608 148 . 296 Parts Sabotaged . | . . . . . . Parts Stolen . | . . . . . . Parts Stripped . | . . . . . . Power Chain Reactions 3 | . 2 1 . . . Alert | -11 -10 -9 -9 -9 -8 ------- Run | Yrd Mat Mat Min Exi Min Maximum Alert Level 1 | . . 1 . . . Low Security (%) 98 | 100 100 97 100 . 100 Level 1 1 | . . 2 . . . Level 2 . | . . . . . . Level 3 . | . . . . . . Level 4 . | . . . . . . Level 5 . | . . . . . . High Security . | . . . . . . Max Security . | . . . . . . Peak Influence 252 | 5 66 252 142 . 65 Initial 97 | . . . 97 . . Average 49 | . 33 58 62 . 5 Influence Increases 1017 | 10 121 736 85 . 65 Destroy 0b10 Robot/C 620 | . 40 480 60 . 40 Destroy 0b10 Robot/NC 35 | 10 10 15 . . . Destroy Leader 150 | . 10 120 10 . 10 Successful Hack 23 | . 11 12 . . . Disable Machine 105 | . 45 30 15 . 15 Destroy Structure 9 | . 5 4 . . . Lose Combat Pursuer 75 | . . 75 . . . Influence Decreases 952 | 10 120 485 337 . . Entered New Map 156 | . . 1 155 . . Time Decay 698 | 10 120 386 182 . . Lost Part 90 | . . 90 . . . Purge Threat 8 | . . 8 . . . Squads Dispatched 6 | . 2 4 . . . Investigation 5 | . 1 4 . . . Extermination . | . . . . . . Reinforcement 1 | . 1 . . . . Assault . | . . . . . . Garrison . | . . . . . . Intercept . | . . . . . . Searches Triggered . | . . . . . . Construction Impeded . | . . . . . . Haulers Reinforced . | . . . . . . Active Scanning Responses . | . . . . . . Cargo Convoy Interrupts . | . . . . . . Stealth | -11 -10 -9 -9 -9 -8 --------- Run | Yrd Mat Mat Min Exi Min Distress Signals 8 | . 1 7 . . . Communications Jammed . | . . . . . . Distress Signals . | . . . . . . Times Spotted 61 | . 10 46 2 . 3 Peak Tracking Total 9 | . 8 9 2 . 3 Tactical Retreats 3 | . . 3 . . . Traps | -11 -10 -9 -9 -9 -8 ------- Run | Yrd Mat Mat Min Exi Min Traps Triggered . | . . . . . . Indirectly . | . . . . . . Trap Hack Attempts . | . . . . . . Triggered . | . . . . . . Disarmed . | . . . . . . Reprogrammed . | . . . . . . Reused . | . . . . . . Traps Extracted . | . . . . . . Installed . | . . . . . . Triggered . | . . . . . . Machines | -11 -10 -9 -9 -9 -8 ---------- Run | Yrd Mat Mat Min Exi Min Machines Disabled 7 | . 3 2 1 . 1 Max in Single Turn 2 | . 2 1 1 . 1 Machines Repaired . | . . . . . . Machines Dismantled . | . . . . . . Machines Sabotaged . | . . . . . . Overloaded Fab Kills . | . . . . . . Hacking | -11 -10 -9 -9 -9 -8 --------- Run | Yrd Mat Mat Min Exi Min Machines Accessed 10 | . 2 7 . 1 . Terminals 9 | . 2 7 . . . Fabricators . | . . . . . . Repair Stations . | . . . . . . Recycling Units . | . . . . . . Scanalyzers . | . . . . . . Garrison Access . | . . . . . . Total Hacks 33 | . 9 23 . 1 . Successful 16 | . 4 11 . 1 . Failed 17 | . 5 12 . . . Catastrophic 3 | . 1 2 . . . Database Lockouts . | . . . . . . Manual 33 | . 9 23 . 1 . Terminals 32 | . 9 23 . . . Fabricators . | . . . . . . Repair Stations . | . . . . . . Recycling Units . | . . . . . . Scanalyzers . | . . . . . . Garrison Access . | . . . . . . Terminal Hacks 2 | . . 1 . 1 . Unreport Threat 1 | . . 1 . . . Proto ID Catalog 1 | . . . . 1 . Fabricator Hacks . | . . . . . . Repair Station Hacks . | . . . . . . Recycling Unit Hacks . | . . . . . . Scanalyzer . | . . . . . . Garrison Access Hacks . | . . . . . . Unauthorized Hacks 14 | . 4 10 . . . Terminals 14 | . 4 10 . . . Track 6 | . 1 5 . . . Assimilate 1 | . 1 . . . . Botnet 7 | . 2 5 . . . Fabricators . | . . . . . . Repair Stations . | . . . . . . Recycling Units . | . . . . . . Scanalyzers . | . . . . . . Garrison Access . | . . . . . . Data Cores Recovered 1 | . . 1 . . . Used . | . . . . . . Hacking Detections 9 | . 2 7 . . . Full Trace Events 8 | . 2 6 . . . Feedback Events . | . . . . . . Feedback Blocked . | . . . . . . Robot Schematics Acquired . | . . . . . . Robots Built . | . . . . . . Authchips . | . . . . . . Time . | . . . . . . Total Robot Build Rating . | . . . . . . Part Schematics Acquired . | . . . . . . Parts Built . | . . . . . . Authchips . | . . . . . . Time . | . . . . . . Total Part Build Rating . | . . . . . . Parts Repaired . | . . . . . . Time . | . . . . . . Parts Recycled . | . . . . . . Recycled Matter . | . . . . . . Retrieved Matter . | . . . . . . Retrieved Components . | . . . . . . Parts Scanalyzed . | . . . . . . Part Schematics Acquired . | . . . . . . Parts Damaged . | . . . . . . Bothacking | -11 -10 -9 -9 -9 -8 ------------ Run | Yrd Mat Mat Min Exi Min Used RIF Installer . | . . . . . . Robots Hacked . | . . . . . . Non-combat . | . . . . . . Combat . | . . . . . . Robot Hacks Applied . | . . . . . . Relay Couplers Released . | . . . . . . Fabnet Peak Effective % . | . . . . . . Robots Rewired . | . . . . . . Allies Hacked . | . . . . . . Hacks Repelled . | . . . . . . Allies | -11 -10 -9 -9 -9 -8 -------- Run | Yrd Mat Mat Min Exi Min Total Allies . | . . . . . . Largest Group . | . . . . . . Highest-Rated Group . | . . . . . . Highest-Rated Ally . | . . . . . . Total Orders . | . . . . . . Ally Attacks . | . . . . . . Total Damage . | . . . . . . Kills . | . . . . . . Allies Corrupted . | . . . . . . Allies Melted . | . . . . . . Intel | -11 -10 -9 -9 -9 -8 ------- Run | Yrd Mat Mat Min Exi Min Active Infowar (turns) 1993 | 36 248 697 440 432 140 Sensors 1440 | . . 428 440 432 140 Terrain 553 | 36 248 269 . . . Robot Analysis Total . | . . . . . . Derelict Logs Recovered . | . . . . . . Drone Launches . | . . . . . . Drone Recoveries . | . . . . . . Exploration | -11 -10 -9 -9 -9 -8 ------------- Run | Yrd Mat Mat Min Exi Min Turns Passed 2452 | 116 251 1074 440 432 139 Spaces Moved 1204 | 65 172 520 212 226 9 Core 11 | 11 . . . . . Treads . | . . . . . . Legs 1193 | 54 172 520 212 226 9 Wheels . | . . . . . . Hover . | . . . . . . Flight . | . . . . . . Fastest Speed 50 | 50 120 120 190 190 190 Average Speed 149 | 110 120 129 190 190 190 Slowest Speed 200 | 200 120 190 190 190 190 Overloaded Moves . | . . . . . . Propulsion Burnouts . | . . . . . . Robots Hopped . | . . . . . . Potential Cave-ins . | . . . . . . Cave-ins Triggered . | . . . . . . Exploration Rate (%) 29 | 4 28 40 43 61 3 Regions Visited 5 Branch Regions 3 Pre-discovered Areas . | . . . . . . Known Exits Taken 3 | . . 1 1 1 . Unknown Exits Taken 2 | 1 1 . . . . Scrap Searched . | . . . . . . Spaces Dug . | . . . . . . Terrain Destroyed 7 | . 4 3 . . . Melee . | . . . . . . Projectile 1 | . . 1 . . . AOE 6 | . 4 2 . . . Terrain Rammed . | . . . . . . Walls Destroyed . | . . . . . . Machines Disabled . | . . . . . . Actions | -11 -10 -9 -9 -9 -8 --------- Run | Yrd Mat Mat Min Exi Min Total 1656 | 101 199 767 240 228 121 Wait 251 | 12 10 102 20 . 107 Move 1199 | 64 171 519 211 225 9 Hop . | . . . . . . Pick Up 42 | 14 3 24 . 1 . Fast Attach 5 | . . 5 . . . Attach 20 | 7 . 13 . . . Detach 1 | . . 1 . . . Swap 15 | . 3 6 4 2 . Drop 23 | . 3 19 1 . . Fire 97 | 4 9 75 4 . 5 Melee . | . . . . . . Ram . | . . . . . . Kick 3 | . . 3 . . . Crush . | . . . . . . Escape Stasis . | . . . . . . Rewire . | . . . . . . Trap . | . . . . . . Miscellaneous . | . . . . . . Route ------- -11/Scrapyard -10/Materials -9/Materials -9/Mines (discovered 3 exits: *Mat x2 / *Exi) -9/Exiles -8/Mines History --------- Turn | Location | Event 21 | -11/Scrapyard | Discovered new exit (range 16) 117 | -11/Scrapyard | Entered Materials 312 | -10/Materials | Build established: Mutant 361 | -10/Materials | Discovered new exit (range 7) 368 | -10/Materials | Entered another Materials area 368 | -9/Materials | Evolved 2 slots: Utility x1, Weapon x1 668 | -9/Materials | Lost 7 parts (1p2n1u3w) 786 | -9/Materials | Core integrity fell below 50% 1307 | -9/Materials | Build established: Scavenger-Skirmisher 1339 | -9/Materials | Discovered new exit (range 6) 1440 | -9/Materials | Identified exit to Mines 1442 | -9/Materials | Entered Mines 1617 | -9/Mines | Discovered new exit (range 8) 1666 | -9/Mines | Identified exit to Materials 1677 | -9/Mines | Discovered exit to Materials (range 14) 1683 | -9/Mines | Build established: Skirmisher 1875 | -9/Mines | Deemed a non-threat by the Exiles lab entrance 1875 | -9/Mines | Discovered new exit (range 5) 1880 | -9/Mines | Identified exit to Exiles 1882 | -9/Mines | Entered Exiles 1932 | -9/Exiles | Met 8R-AWN 1962 | -9/Exiles | Met EX-HEX 2019 | -9/Exiles | Met EX-BIN 2046 | -9/Exiles | Aligned with FarCom system 2048 | -9/Exiles | Given EX-Vault access code 2093 | -9/Exiles | Opened EX-Vault 2097 | -9/Exiles | Found Prototype Special Weapon 2098 | -9/Exiles | Identified Field Lobotomy Kit 2145 | -9/Exiles | Warned to stay clear of 0b10 Research branches 2200 | -9/Exiles | Met EX-DEC 2284 | -9/Exiles | Discovered new exit (range 10) 2301 | -9/Exiles | Identified exit to Mines 2314 | -9/Exiles | Left Exiles lab with Field Lobotomy Kit 2314 | -9/Exiles | Entered Mines 2451 | -8/Mines | Core integrity fell below 20% 2454 | -8/Mines | Core destroyed Last Messages --------------- EX-DEC: Ah I see we have a visitor. One wrong move in here and I'll invert your atomic chain! EXIT=FOUND EXIT=IDENTIFIED: MINES LOCATION=MINES GOAL=ESCAPE Receiving FarCom transmissions... K-01 Serf collects debris. K-01 Serf cleans the Seismic Survey Station. Seismic Survey Station disabled. B-36 Bruiser destroyed. G-47 Trooper destroyed. Acquired 20 matter. Aluminum Leg broken. Overheating: Short circuit. Power failure, Imp. Ion Engine shutdown. Overheating: Matter decay (-66). Acquired 29 matter. Overheating: Core damaged (-76). Map ----- +----------------------------------------------------+ | ????????????????????????????????? | | ????????????????????????????????? | | ????????????????????????????????? | | ????????????????????????????????? | | ????????????????????????????????? | | ????????????????????????????????? | | ????????????????????????????????? | | ????????????????????????????????? | | ????????????????????????????????? | | ????????????????????????????????? | | ????????????????????????????????? | | ????????????????????????????????? | | ????????????????????????????????? | | ????????????????????????????????? | | ??????????##????????????????????? | | ????????t? ????????????????????? | | ?????????? #???????????????????? | | ??????????# #???????????????????? | | ??????????# #???????????????????? | | ??????????# #???????????????????? | | ??????????# #???????????????????? | | ??????????# ???????????????????? | | ??????????# #???????????????????? | | ??????????# #???????????????????? | | ??????##### ###?????????????????? | | ??????# @=%= #?????????????????? | | ??????#"=g! #?????????????????? | | ??????#" " #?????????????????? | | ??????#""" #?????????????????? | | ??????# #?????????????????? | | ??????# #?????????????????? | | ??????#########?????????????????? | | ????????????????????????????????? | | ????????????????????????????????? | | ????????????????????????????????? | | ????????????????????????????????? | | ????????????????????????????????? | | ????????????????????????????????? | | ????????????????????????????????? | | ????????????????????????????????? | | ????????????????????????????????? | | ????????????????????????????????? | | ????????????????????????????????? | | ????????????????????????????????? | | ????????????????????????????????? | | ????????????????????????????????? | | ????????????????????????????????? | | ????????????????????????????????? | | ????????????????????????????????? | | ????????????????????????????????? | +----------------------------------------------------+ Best States ------------- Heat Dissipation 64 Energy Generation 12 Energy Capacity 265 Matter Stores 300 Matter Capacity 300 Sight Range 16 Robot Scan Range 14 Terrain Scan Range 16 Terrain Scan Density 10 Armor Coverage 600 Evasion (%) 55 Targeting Accuracy 5 Item Schematics ----------------- None Robot Schematics ------------------ None Fabricated ------------ Nothing Repaired ---------- Nothing Alien Tech Used ----------------- None Achievements -------------- None Challenges ------------ None Game ------ Seed MassImprinterFlightbrick Manual? 0 Play Time 00:22:27 Cumulative 24.0 hours Start 2025.08.06 @ 18:05:18 End 2025.08.06 @ 18:27:47 Sessions 1 Manual Loads 0 Difficulty Rogue Special Mode None Game No. 48 Rogue 45 Adventurer 3 Explorer 0 Win Type - Total 0 Types 0/0/0/0/0/0/0/0/0/0 Lore% 15 Gallery% 19 Achievement% 21 Wizard Run 0 Options --------- Layout 1 ASCII 0 Keyboard 0 Movement Mouse Keybinds 0 Fullscreen 1 Font 24/Smallcaps Map View 50x35 Zoom Use 0% Tactical HUD 0 Map Filters NONE Filters NONE Steam 1 RUN: bcb52d7b-38fa-40c5-a7e2-def19d366a71